bitfinex/quotes_ETHUSD_20240925
["timestamp","ask_amount","ask_price","bid_price","bid_amount"]
[1727225183394,12.88312929,2655.8,2655.7,0.0387289]
[1727225183598,3.76662,2654.9,2654.8,0.0387289]
[1727225187133,3.0,2655.0,2654.8,0.0387289]
[1727225187294,3.7661,2655.3,2654.8,0.0387289]
[1727225187492,3.0,2655.2,2654.9,0.7711]
[1727225187940,3.0,2655.2,2655.0,0.04638252]
[1727225188147,6.76627,2655.2,2655.0,0.04638252]
[1727225188351,3.76633,2655.1,2655.0,0.04638252]
[1727225188639,0.55,2655.0,2654.8,0.0387289]
[1727225188804,3.76662,2654.9,2654.8,0.0387289]
[1727225189411,3.83801652,2655.0,2654.8,0.0387289]
[1727225189412,1.0755415,2655.0,2654.8,0.0387289]
[1727225190234,7.60450652,2655.0,2654.8,0.0387289]
[1727225190443,4.31662,2654.9,2654.8,0.0387289]
[1727225191748,7.40632,2654.9,2654.8,0.0387289]
[1727225192046,11.18904617,2654.9,2654.8,0.0387289]
[1727225192208,15.15604617,2654.9,2654.8,0.0387289]
[1727225193419,13.46724941,2654.9,2654.8,0.0387289]
[1727225197808,9.41054941,2654.9,2654.8,0.0387289]
[1727225198134,8.86054941,2654.9,2654.8,0.0387289]
[1727225199251,9.41054941,2654.9,2654.8,0.0387289]
[1727225201946,9.41054941,2654.9,2654.8,0.08558269]
[1727225202462,9.41054941,2654.9,2654.8,0.0387289]
[1727225203054,9.41054941,2654.9,2654.8,0.08567937]
[1727225203225,7.31662,2654.9,2654.8,0.08567937]
[1727225203755,6.52857502,2655.3,2654.8,4.67753937]
[1727225204551,6.52857502,2655.3,2654.8,4.6305889]
[1727225204932,3.0,2655.2,2654.9,0.04680993]
[1727225209641,6.76622,2655.2,2654.9,0.04680993]
[1727225211656,3.76634,2655.1,2654.9,0.04680993]
[1727225211867,6.76622,2655.2,2654.9,0.04680993]
[1727225212024,6.76622,2655.2,2654.8,0.8638289]
[1727225212222,10.53249,2655.2,2654.9,0.04664153]
[1727225212458,8.17414621,2655.2,2654.8,0.8638289]
[1727225212822,3.76635,2655.1,2654.8,0.8638289]
[1727225213385,3.76635,2655.1,2654.9,0.04664153]
[1727225213842,8.95873325,2655.2,2654.9,0.04664153]
[1727225214287,12.72500325,2655.2,2654.9,0.04664153]
[1727225214443,0.9076202,2655.1,2654.8,0.8638289]
[1727225214645,7.55080704,2655.2,2654.9,0.04664153]
[1727225215388,1.69268243,2655.1,2654.9,0.04664153]
[1727225215568,7.55080704,2655.2,2654.9,0.04664153]
[1727225216372,1.69314384,2655.1,2654.9,0.04664153]
[1727225216889,1.69314384,2655.1,2655.0,4.59157]
[1727225216890,0.9085568,2655.1,2655.0,4.59157]
[1727225217180,3.78458704,2655.2,2655.0,4.59157]
[1727225217345,3.78458704,2655.2,2655.0,4.63811465]
[1727225217346,1.69314984,2655.1,2655.0,4.63811465]
[1727225217763,1.69314984,2655.1,2655.0,4.59157]
[1727225218175,1.69314984,2655.1,2655.0,4.63800551]
[1727225218388,2.08544336,2655.1,2655.0,4.63800551]
[1727225218691,1.69557071,2655.1,2655.0,4.63800551]
[1727225219240,0.9085628,2655.1,2655.0,4.63800551]
[1727225219587,1.17688056,2655.1,2655.0,4.63800551]
[1727225219886,0.9085628,2655.1,2655.0,4.63800551]
[1727225220048,1.17688056,2655.2,2655.0,4.63800551]
[1727225220383,2.08544336,2655.1,2655.0,4.63800551]
[1727225220591,2.08703243,2655.1,2655.0,4.63800551]
[1727225221154,1.17688056,2655.1,2655.0,4.63800551]
[1727225221462,2.08703243,2655.1,2655.0,4.63800551]
[1727225222754,1.17688056,2655.1,2655.0,4.63800551]
[1727225222961,2.08703243,2655.1,2655.0,4.63800551]
[1727225224259,2.08731291,2655.1,2655.0,4.63800551]
[1727225224456,1.17688056,2655.1,2655.0,4.63800551]
[1727225225087,2.08731291,2655.1,2655.0,4.63800551]
[1727225225687,1.69803847,2655.1,2655.0,5.48233895]
[1727225226010,0.78760612,2655.4,2655.3,3.76605]
[1727225226294,0.78760612,2655.4,2655.3,3.81210764]
[1727225226295,1.69866989,2655.4,2655.3,3.81210764]
[1727225226660,0.91106377,2655.4,2655.3,3.81210764]
[1727225226960,0.91098287,2655.4,2655.3,3.81210764]
[1727225227162,0.78760612,2655.4,2655.3,3.81210764]
[1727225227411,1.69858899,2655.4,2655.3,3.81210764]
[1727225228302,0.78760612,2655.4,2655.3,3.81210764]
[1727225228599,1.6984461,2655.4,2655.3,3.81210764]
[1727225228760,0.78760612,2655.5,2655.4,3.76591]
[1727225228958,1.69839169,2655.5,2655.4,3.76591]
[1727225229181,1.69839169,2655.5,2655.4,4.5962708]
[1727225229392,0.91078557,2655.5,2655.4,4.5962708]
[1727225229596,0.78760612,2655.6,2655.4,4.5962708]
[1727225229902,0.78760612,2655.8,2655.6,4.55002]
[1727225230113,0.78760612,2655.9,2655.8,3.76534]
[1727225230397,1.56917408,2656.1,2655.8,0.7844]
[1727225230398,0.78760612,2656.1,2655.8,0.7844]
[1727225230604,0.78760612,2656.1,2655.8,0.82984569]
[1727225230903,0.90927641,2656.0,2655.9,3.7652]
[1727225231108,1.69688946,2656.0,2655.9,3.7652]
[1727225231398,1.17688056,2656.2,2655.9,3.81054888]
[1727225231399,0.78760612,2656.1,2655.9,3.81054888]
[1727225231588,0.78760612,2656.1,2655.9,0.04534888]
[1727225232197,0.78760612,2656.1,2656.0,3.76506]
[1727225232404,0.78760612,2656.2,2656.0,3.76506]
[1727225232705,0.78760612,2656.2,2656.1,4.55081]
[1727225232914,0.78760612,2656.3,2656.2,3.76477]
[1727225233096,0.78760612,2656.4,2656.3,4.55053]
[1727225233411,0.78760612,2656.5,2656.3,0.83041607]
[1727225233564,0.78760612,2656.5,2656.3,4.59502607]
[1727225234280,1.21090642,2656.7,2656.3,4.59502607]
[1727225234281,0.78760612,2656.7,2656.3,4.59502607]
[1727225234599,0.78760612,2656.7,2656.4,3.76445]
[1727225234773,0.78760612,2656.7,2656.3,4.59502607]
[1727225234774,0.78760612,2656.8,2656.5,3.76433]
[1727225235106,0.78760612,2656.9,2656.5,3.80865254]
[1727225235566,4.55124612,2657.0,2656.5,3.80865254]
[1727225235767,0.90798486,2656.9,2656.5,0.04432254]
[1727225236003,6.2474225,2657.0,2656.5,0.04432254]
[1727225236169,0.90798566,2656.9,2656.3,4.55051]
[1727225236366,0.71554082,2656.8,2656.3,4.55051]
[1727225237709,0.71554082,2656.8,2656.4,3.76445]
[1727225238118,0.71554082,2656.8,2656.5,0.04419482]
[1727225238411,6.2474225,2657.0,2656.5,3.80842482]
[1727225238412,1.69617638,2657.0,2656.5,3.80842482]
[1727225238911,1.69617638,2657.0,2656.6,0.7859]
[1727225239245,1.69617638,2657.0,2656.6,4.55009]
[1727225239410,1.69617638,2657.0,2656.6,0.7859]
[1727225239585,1.69617638,2657.0,2656.7,0.04400131]
[1727225241083,3.76353,2657.1,2656.7,0.04400131]
[1727225242114,3.76353,2657.1,2656.6,4.55008]
[1727225244325,3.76353,2657.1,2656.7,0.04391723]
[1727225244620,3.76386,2656.9,2656.7,0.04391723]
[1727225244785,7.52773,2656.9,2656.7,0.04391723]
[1727225244980,0.761743,2656.8,2656.4,4.55035]
[1727225246180,0.761743,2656.8,2656.4,4.5503]
[1727225246696,0.761743,2656.8,2656.4,8.3147]
[1727225247492,0.761743,2656.8,2656.4,4.5503]
[1727225248527,0.761743,2656.8,2656.4,0.7859]
[1727225248528,3.7641,2656.7,2656.4,0.7859]
[1727225248683,0.4525843,2656.6,2656.4,0.7859]
[1727225249922,3.7641,2656.7,2656.4,0.7859]
[1727225251706,3.7641,2656.7,2656.5,0.04387713]
[1727225254940,7.16637502,2656.6,2656.5,0.04387713]
[1727225255093,0.55,2656.6,2656.5,0.04387713]
[1727225255298,3.76407,2656.7,2656.5,0.04387713]
[1727225255299,0.761743,2656.8,2656.5,3.76428]
[1727225255600,0.761743,2656.8,2656.4,0.7936]
[1727225255601,0.55,2656.9,2656.6,3.80804886]
[1727225256022,0.55,2656.9,2656.6,0.04384886]
[1727225256503,3.76366,2657.0,2656.6,3.80803886]
[1727225256705,3.55,2657.1,2656.7,0.7936]
[1727225257012,4.31353,2657.1,2656.8,0.04362423]
[1727225258216,4.31353,2657.1,2656.7,0.7936]
[1727225258413,0.55,2656.9,2656.7,0.7936]
[1727225258645,0.55,2656.9,2656.8,0.04362423]
[1727225259015,0.55,2656.9,2656.7,0.7936]
[1727225259426,0.55,2656.9,2656.8,0.04362423]
[1727225259616,0.55,2656.9,2656.7,0.7936]
[1727225259940,0.55,2656.9,2656.8,0.04362423]
[1727225260235,0.55,2656.9,2656.7,0.7936]
[1727225260740,0.55,2656.9,2656.8,0.04362423]
[1727225260902,0.55,2656.9,2656.7,0.7936]
[1727225261106,0.55,2656.9,2656.8,0.04362423]
[1727225261508,0.55,2656.9,2656.7,0.7936]
[1727225261919,0.55,2656.9,2656.8,0.04362423]
[1727225262128,0.55,2656.9,2656.7,0.7936]
[1727225262325,0.55,2656.9,2656.8,0.04362423]
[1727225262542,0.55,2656.9,2656.7,0.7936]
[1727225263039,0.55,2656.9,2656.8,0.04362423]
[1727225263348,0.55,2656.9,2656.7,0.7936]
[1727225263707,0.55,2656.9,2656.8,0.04362423]
[1727225263909,0.55,2656.9,2656.7,0.7936]
[1727225264123,0.55,2656.9,2656.8,0.04362423]
[1727225264318,0.55,2656.9,2656.7,0.7936]
[1727225264606,0.55,2656.9,2656.8,0.04362423]
[1727225264848,0.55,2656.9,2656.7,0.7936]
[1727225265207,0.55,2656.9,2656.8,0.04362423]
[1727225265564,2.24835088,2656.9,2656.7,0.7936]
[1727225265763,0.55,2656.9,2656.7,0.7936]
[1727225266125,0.55,2656.9,2656.8,0.04362423]
[1727225266326,1.46072157,2656.9,2656.7,0.7936]
[1727225266561,0.55,2656.9,2656.8,0.04355886]
[1727225266858,1.46075183,2656.9,2656.7,0.7936]
[1727225267063,0.55,2656.9,2656.7,0.7936]
[1727225267274,0.55,2656.9,2656.8,0.04355886]
[1727225268462,0.78760612,2656.9,2656.8,3.80747886]
[1727225268622,0.91142367,2657.0,2656.8,3.80747886]
[1727225268623,0.78760612,2657.0,2656.8,3.80747886]
[1727225268823,0.78760612,2657.1,2656.8,3.80747886]
[1727225269138,1.33760612,2657.1,2656.8,3.76392]
[1727225269528,1.33760612,2657.1,2656.9,0.04338429]
[1727225270927,0.91292702,2657.0,2656.7,4.55758]
[1727225271128,1.33760612,2657.1,2656.8,0.04348102]
[1727225271357,1.70053981,2657.0,2656.8,0.04348102]
[1727225272563,1.70137409,2656.9,2656.8,0.04348102]
[1727225272857,0.78760612,2657.0,2656.8,0.04348102]
[1727225273237,0.78760612,2656.9,2656.8,0.04348102]
[1727225273463,0.78760612,2657.0,2656.9,3.76378]
[1727225273664,0.78760612,2657.0,2656.9,4.53078]
[1727225273842,1.70180217,2657.0,2656.9,4.57416429]
[1727225274273,0.78760612,2657.0,2656.9,4.57416429]
[1727225274574,1.70180217,2657.0,2656.9,4.57416429]
[1727225274749,0.7892554,2657.0,2656.9,4.57416429]
[1727225274949,1.70376476,2657.0,2656.9,4.57416429]
[1727225275351,0.91450936,2657.0,2656.9,4.57416429]
[1727225275668,1.70404755,2657.0,2656.9,4.57416429]
[1727225275868,2.09138992,2657.0,2656.9,4.57416429]
[1727225276251,1.17688056,2657.0,2656.9,4.57416429]
[1727225276453,2.09138992,2657.0,2656.9,4.57416429]
[1727225277231,0.91450936,2657.0,2656.9,4.57416429]
[1727225277532,0.89327914,2657.0,2656.9,4.57416429]
[1727225277972,0.10359136,2657.0,2656.9,4.57416429]
[1727225278274,0.08237906,2657.0,2656.9,5.52925379]
[1727225278447,1.17688056,2657.1,2657.0,3.76364]
[1727225278768,1.17688056,2657.1,2657.0,3.80683106]
[1727225279068,1.17688056,2657.2,2657.1,3.7635]
[1727225279444,1.17688056,2657.2,2657.1,3.80659434]
[1727225279755,1.17688056,2657.2,2657.1,4.57359434]
[1727225281153,1.17688056,2657.3,2657.1,4.57359434]
[1727225281579,1.17688056,2657.2,2657.1,4.57359434]
[1727225282140,1.17688056,2657.3,2657.1,4.57359434]
[1727225282477,1.17688056,2657.2,2657.1,4.57359434]
[1727225283179,1.17688056,2657.3,2657.1,4.57359434]
[1727225284848,1.17688056,2657.3,2657.1,0.81009434]
[1727225285278,1.17688056,2657.4,2657.1,0.81009434]
[1727225285474,1.17688056,2657.4,2657.1,4.57356434]
[1727225285850,1.17688056,2657.4,2657.3,3.76321]
[1727225286080,1.17688056,2657.5,2657.4,3.76307]
[1727225286255,1.17688056,2657.6,2657.4,3.76307]
[1727225286457,1.17688056,2657.6,2657.4,3.80567189]
[1727225286756,1.17688056,2657.6,2657.5,3.76293]
[1727225286958,1.17688056,2657.7,2657.6,3.76279]
[1727225287163,1.17688056,2657.9,2657.7,3.76257]
[1727225287543,1.17688056,2657.9,2657.8,0.04204401]
[1727225287749,1.17688056,2658.0,2657.7,3.76257]
[1727225288059,1.21560946,2658.1,2657.9,3.76236]
[1727225288257,1.69239893,2658.0,2657.9,3.76236]
[1727225288885,0.90412257,2658.0,2657.9,3.76236]
[1727225289205,0.82700526,2658.1,2657.9,3.76236]
[1727225289695,0.0387289,2658.1,2657.9,3.76236]
[1727225290194,0.0387289,2658.1,2658.0,4.53752]
[1727225290406,0.0387289,2658.1,2658.0,4.61275844]
[1727225292504,0.0387289,2658.1,2658.0,6.49275844]
[1727225294892,0.03024221,2658.1,2658.0,6.49275844]
[1727225296582,0.03024221,2658.1,2658.0,6.53413628]
[1727225296777,0.03024221,2658.1,2658.0,7.56378591]
[1727225301727,0.03024221,2658.1,2658.0,1.92137784]
[1727225309184,4.43202221,2658.1,2658.0,1.92137784]
[1727225309514,6.12297382,2658.1,2658.0,1.88]
[1727225309833,4.78469746,2658.1,2658.0,1.88]
[1727225309998,3.88202221,2658.1,2658.0,1.88]
[1727225310210,3.88202221,2658.1,2658.0,1.92031615]
[1727225310687,0.03024221,2658.1,2658.0,1.92031615]
[1727225314291,3.79232221,2658.1,2658.0,1.92031615]
[1727225314721,6.45205007,2658.1,2658.0,1.92031615]
[1727225315029,4.76270866,2658.1,2658.0,1.92031615]
[1727225315914,6.45217566,2658.1,2658.0,1.92031615]
[1727225316347,4.76270866,2658.1,2658.0,1.92031615]
[1727225316663,5.66653575,2658.1,2658.0,1.92031615]
[1727225316860,6.45232912,2658.1,2658.0,1.92031615]
[1727225317018,4.76270866,2658.1,2658.0,1.92031615]
[1727225317663,7.09258307,2658.1,2658.0,1.92031615]
[1727225317818,9.08194365,2658.1,2658.0,1.88]
[1727225318022,7.51276957,2658.1,2658.0,1.88]
[1727225318254,9.08685801,2658.1,2658.0,1.88]
[1727225318559,9.47909249,2658.1,2658.0,1.88]
[1727225319633,9.48155194,2658.1,2658.0,1.88]
[1727225322365,7.51325339,2658.1,2658.0,1.88]
[1727225323081,9.48155194,2658.1,2658.0,1.88]
[1727225324233,9.48355658,2658.1,2658.0,1.88]
[1727225325978,10.75779547,2658.1,2658.0,1.88]
[1727225326127,10.75779547,2658.1,2658.0,1.92066166]
[1727225327344,9.69770902,2658.1,2658.0,1.92066166]
[1727225327545,9.30412038,2658.1,2658.0,1.92066166]
[1727225328240,7.72803316,2658.1,2658.0,1.92066166]
[1727225328432,9.30433469,2658.1,2658.0,1.92066166]
[1727225328765,9.30465825,2658.1,2658.0,1.92066166]
[1727225329175,7.72835672,2658.1,2658.0,1.92066166]
[1727225329352,9.698743,2658.1,2658.0,1.92066166]
[1727225330176,6.45411783,2658.1,2658.0,1.92066166]
[1727225330376,8.03086983,2658.1,2658.0,1.92066166]
[1727225330549,8.03086642,2658.1,2658.0,1.92066166]
[1727225331163,6.45411783,2658.1,2658.0,1.92066166]
[1727225331596,8.42450411,2658.1,2658.0,1.92066166]
[1727225332788,6.45411783,2658.1,2658.0,1.92066166]
[1727225333607,8.42613488,2658.1,2658.0,1.92066166]
[1727225336884,6.45463098,2658.1,2658.0,1.92066166]
[1727225337085,8.42613488,2658.1,2658.0,1.92066166]
[1727225337732,2.11943427,2658.1,2658.0,2.72306166]
[1727225337937,2.11943427,2658.1,2658.0,3.37160683]
[1727225338213,1.72514127,2658.1,2658.0,3.37160683]
[1727225338427,2.1194287,2658.1,2658.0,3.37160683]
[1727225338786,0.93656554,2658.1,2658.0,3.37160683]
[1727225339515,1.21310537,2658.1,2658.0,3.37160683]
[1727225339808,2.1194287,2658.1,2658.0,3.37160683]
[1727225341516,2.11978448,2658.1,2658.0,3.37160683]
[1727225342478,0.93692132,2658.1,2658.0,2.72306166]
[1727225342790,3.06410522,2658.1,2658.0,1.92066166]
[1727225342981,2.69609247,2658.1,2658.0,1.92066166]
[1727225343176,8.43045412,2658.1,2658.0,1.92066166]
[1727225345193,6.45817247,2658.1,2658.0,1.92066166]
[1727225346228,6.45908542,2658.1,2658.0,1.92066166]
[1727225350425,7.97226898,2658.1,2658.0,1.92066166]
[1727225350591,11.88810354,2658.1,2658.0,1.92066166]
[1727225350934,11.88947672,2658.1,2658.0,1.92066166]
[1727225351988,11.88947672,2658.1,2658.0,1.88]
[1727225352202,9.51937982,2658.1,2658.0,1.88]
[1727225353614,9.60907982,2658.1,2658.0,1.88]
[1727225355753,9.6091919,2658.1,2658.0,1.88]
[1727225356057,11.97934065,2658.1,2658.0,1.88]
[1727225356223,13.25353452,2658.1,2658.0,1.88]
[1727225356550,10.88343079,2658.1,2658.0,1.88]
[1727225356845,13.25355716,2658.1,2658.0,1.92056863]
[1727225357252,13.25355716,2658.1,2658.0,1.88]
[1727225357624,10.88343079,2658.1,2658.0,1.88]
[1727225358531,10.34317507,2658.1,2658.0,1.92056863]
[1727225358732,6.58109507,2658.1,2658.0,1.88]
[1727225359043,5.06791151,2658.1,2658.0,1.92056863]
[1727225360261,2.14800881,2658.1,2658.0,6.75385549]
[1727225360486,2.51899446,2658.1,2658.0,6.75385549]
[1727225360748,2.51899446,2658.1,2658.0,6.71328686]
[1727225361129,2.51899446,2658.1,2658.0,6.75385549]
[1727225361312,2.51899446,2658.1,2658.0,2.99163549]
[1727225362115,2.51899446,2658.1,2658.0,2.95106686]
[1727225362333,2.51899446,2658.1,2658.0,2.99164214]
[1727225363473,3.72816561,2658.1,2658.0,2.99164214]
[1727225364181,3.72816561,2658.1,2658.0,6.75386214]
[1727225364481,2.51899446,2658.1,2658.0,6.75386214]
[1727225364645,0.93883766,2658.1,2658.0,6.75386214]
[1727225364845,2.51852371,2658.1,2658.0,6.75386214]
[1727225365062,2.14753806,2658.1,2658.0,6.75386214]
[1727225365368,0.93836691,2658.1,2658.0,6.75386214]
[1727225366166,2.51852371,2658.1,2658.0,6.75386214]
[1727225366531,2.14923632,2658.1,2658.0,6.75386214]
[1727225366734,0.93836691,2658.1,2658.0,6.75386214]
[1727225367072,2.12304182,2658.1,2658.0,6.75386214]
[1727225368173,3.72939312,2658.1,2658.0,6.75386214]
[1727225368476,2.14923632,2658.1,2658.0,6.75386214]
[1727225368779,0.93836691,2658.1,2658.0,6.75386214]
[1727225368980,2.12299142,2658.1,2658.0,6.82909995]
[1727225369132,1.72805368,2658.1,2658.0,6.82909995]
[1727225369494,0.03024221,2658.1,2658.0,6.82909995]
[1727225387016,0.78968677,2658.5,2658.0,6.82909995]
[1727225387017,0.00901098,2658.5,2658.4,3.76166]
[1727225387343,1.18462451,2658.6,2658.4,3.80786748]
[1727225387727,2.4588634,2658.5,2658.4,0.04620748]
[1727225387932,0.0897,2658.4,2658.0,1.88]
[1727225388242,1.27423889,2658.1,2658.0,1.88]
[1727225388604,2.5485634,2658.1,2658.0,1.88]
[1727225388808,3.33561032,2658.1,2658.0,1.88]
[1727225389744,3.35373244,2658.1,2658.0,1.88]
[1727225389915,3.33560174,2658.1,2658.0,1.88]
[1727225390256,7.0976714,2658.1,2658.0,1.88]
[1727225390549,7.66581713,2658.1,2658.0,1.88]
[1727225390752,9.63657651,2658.1,2658.0,1.88]
[1727225391120,7.66581713,2658.1,2658.0,1.88]
[1727225392543,11.53168224,2658.1,2658.0,1.88]
[1727225392749,11.53205194,2658.1,2658.0,1.88]
[1727225393046,9.16677098,2658.1,2658.0,1.88]
[1727225394755,11.53205194,2658.1,2658.0,0.14860337]
[1727225395171,9.16677098,2658.1,2658.0,0.14860337]
[1727225395323,9.07707098,2658.1,2657.0,3.76357]
[1727225395663,1.27423889,2657.4,2657.0,3.76357]
[1727225395954,6.30910579,2657.6,2657.1,3.76347]
[1727225396156,1.27423889,2657.6,2657.3,3.7632]
[1727225397635,2.06229193,2657.6,2657.3,3.7632]
[1727225398154,0.78805304,2657.6,2657.3,3.7632]
[1727225398323,0.78805304,2657.7,2657.3,3.7632]
[1727225399019,1.68108589,2657.6,2657.3,3.7632]
[1727225399218,0.78805304,2657.6,2657.3,3.7632]
[1727225400361,2.06229193,2657.6,2657.3,3.7632]
[1727225400986,2.06229193,2657.6,2657.4,3.76297]
[1727225401150,0.78805304,2657.6,2657.4,3.76297]
[1727225401354,0.78805304,2657.6,2657.5,3.76293]
[1727225401596,1.68108842,2657.6,2657.4,3.76306]
[1727225401797,0.78805304,2657.6,2657.5,0.04108317]
[1727225401965,0.89303006,2657.6,2657.5,3.80400317]
[1727225402292,0.78805304,2657.7,2657.5,4.60171317]
[1727225402501,0.78805304,2657.9,2657.7,3.76265]
[1727225402793,0.78805304,2657.9,2657.6,3.76279]
[1727225402794,0.78805304,2657.9,2657.8,3.76251]
[1727225403001,1.68093421,2657.9,2657.8,3.80328243]
[1727225403185,0.89288346,2657.9,2657.8,3.80328243]
[1727225403399,0.78805304,2658.0,2657.8,3.80328243]
[1727225403560,1.68096405,2657.9,2657.8,3.80328243]
[1727225403953,1.68096405,2657.9,2657.8,3.95328243]
[1727225405284,1.68102231,2657.9,2657.8,3.95328243]
[1727225405855,2.9552612,2657.9,2657.8,0.19077243]
[1727225406199,9.90769175,2657.9,2657.8,0.19077243]
[1727225406362,10.30126757,2657.9,2657.8,0.19077243]
[1727225406562,8.33136255,2657.9,2657.8,0.15]
[1727225406859,10.30126757,2657.9,2657.8,0.15]
[1727225407306,8.33136255,2657.9,2657.8,0.15]
[1727225407506,10.30126757,2657.9,2657.8,0.15]
[1727225408560,9.90699115,2657.9,2657.8,0.15]
[1727225408879,9.90699115,2657.9,2657.8,0.19077243]
[1727225409061,9.90699115,2657.9,2657.8,0.15]
[1727225409508,9.90699115,2657.9,2657.8,0.19077243]
[1727225409715,10.30139222,2657.9,2657.8,0.19077243]
[1727225409894,8.33196292,2657.9,2657.8,0.19077243]
[1727225410062,10.30139222,2657.9,2657.8,0.15]
[1727225410596,9.90727925,2657.9,2657.8,0.15]
[1727225411499,9.90716652,2657.9,2657.8,0.15]
[1727225412716,10.30139222,2657.9,2657.8,0.15]
[1727225412863,9.90707874,2657.9,2657.8,0.15]
[1727225413059,8.33196292,2657.9,2657.8,0.15]
[1727225413512,11.33196292,2657.9,2657.8,0.15]
[1727225413667,15.18408024,2657.9,2657.8,0.01282013]
[1727225413864,12.82076508,2657.9,2657.8,0.01282013]
[1727225414378,12.82040795,2657.9,2657.8,0.01282013]
[1727225415093,12.82040795,2657.9,2657.8,0.00109548]
[1727225416210,15.18178083,2657.9,2657.8,0.00109548]
[1727225416516,12.82040795,2657.9,2657.8,0.00109548]
[1727225416869,3.76341,2657.2,2656.8,0.7714]
[1727225417081,1.27423889,2656.9,2656.8,0.7714]
[1727225419502,1.27423889,2656.9,2656.6,4.53551]
[1727225423412,1.27423889,2657.1,2656.6,4.53551]
[1727225423617,5.03783889,2657.1,2656.6,4.53551]
[1727225423918,6.00564921,2657.1,2656.6,4.53551]
[1727225425169,1.27423889,2656.9,2656.6,4.53551]
[1727225425408,1.27423889,2656.9,2656.6,0.7714]
[1727225425409,5.03803889,2656.9,2656.6,0.7714]
[1727225425713,0.96781032,2657.1,2656.4,7.5288]
[1727225425714,1.27423889,2656.7,2656.4,0.7714]
[1727225425908,1.27423889,2656.5,2656.2,4.53605]
[1727225426115,1.27423889,2656.5,2656.2,4.989655]
[1727225426267,3.85372,2656.8,2656.2,4.989655]
[1727225426268,1.27423889,2656.3,2656.2,0.7714]
[1727225426728,5.03886889,2656.3,2655.8,0.7714]
[1727225426928,1.27423889,2655.9,2655.8,0.7714]
[1727225427224,1.27423889,2655.9,2655.7,0.0387289]
[1727225427812,1.27423889,2655.9,2655.8,0.04348551]
[1727225428018,0.78715433,2656.1,2655.8,0.04348551]
[1727225428306,7.0806251,2656.1,2655.9,0.04027568]
[1727225428468,8.03935568,2656.1,2655.7,0.0387289]
[1727225428671,8.03935568,2656.1,2656.0,0.04326212]
[1727225428871,8.03935568,2656.1,2655.7,0.0387289]
[1727225429486,8.03935568,2656.1,2655.8,0.0403794]
[1727225429721,8.03935568,2656.1,2655.7,0.0387289]
[1727225429889,8.03935568,2656.1,2655.9,0.04027568]
[1727225430091,0.43703026,2656.0,2655.7,0.0387289]
[1727225431390,8.03935568,2656.1,2655.7,0.0387289]
[1727225431915,4.27440568,2656.1,2655.8,0.0403794]
[1727225432071,4.27440568,2656.1,2655.7,0.0387289]
[1727225432275,4.27440568,2656.1,2655.9,0.0848911]
[1727225432471,4.27440568,2656.1,2655.7,0.0387289]
[1727225432716,4.27440568,2656.1,2656.0,0.08479252]
[1727225433011,4.27440568,2656.1,2655.7,0.0387289]
[1727225433208,0.55,2656.1,2656.0,0.08479252]
[1727225433369,3.3156751,2656.1,2656.0,0.08479252]
[1727225433569,3.3156751,2656.1,2655.7,0.0387289]
[1727225433774,3.3156751,2656.1,2656.0,0.08479252]
[1727225433998,3.3156751,2656.1,2655.7,0.0387289]
[1727225434199,1.08453651,2656.0,2655.7,0.0387289]
[1727225438208,6.5302551,2656.4,2655.9,3.76509]
[1727225438724,2.7656751,2656.1,2655.8,0.7953]
[1727225438905,2.7656751,2656.1,2655.7,3.8040989]
[1727225438906,2.8553751,2656.1,2655.7,3.8040989]
[1727225444120,2.8553751,2656.1,2655.8,0.08533119]
[1727225444428,2.8553751,2656.1,2655.7,3.8040989]
[1727225444629,2.8553751,2656.1,2655.9,0.0852326]
[1727225444945,3.51739761,2656.1,2656.0,0.08513402]
[1727225445116,2.8553751,2656.1,2655.7,3.8040989]
[1727225445310,2.7656751,2656.1,2655.8,0.08533119]
[1727225445520,0.55,2656.3,2655.8,0.8125]
[1727225445704,0.55,2656.3,2655.9,3.76519]
[1727225445903,0.83177169,2656.2,2655.9,3.8504226]
[1727225446999,0.55,2656.3,2655.9,3.8504226]
[1727225448530,1.82617875,2656.3,2655.9,3.8504226]
[1727225450010,1.27617875,2656.1,2655.9,3.8504226]
[1727225453443,1.27617875,2656.1,2655.9,0.0852326]
[1727225454718,1.27617875,2656.1,2655.9,3.8504126]
[1727225459660,2.06333308,2656.4,2656.2,0.8102]
[1727225460025,2.06333308,2656.4,2656.3,0.08500281]
[1727225460355,2.95942373,2656.4,2656.3,0.08500281]
[1727225462729,2.1722694,2656.4,2656.3,0.08500281]
[1727225463137,3.3530009,2656.4,2656.3,0.08500281]
[1727225463660,2.1722694,2656.4,2656.3,0.08500281]
[1727225463861,3.35303865,2656.4,2656.3,0.08500281]
[1727225464072,4.22219438,2656.4,2656.3,0.08500281]
[1727225464225,10.21489186,2656.4,2656.3,0.08500281]
[1727225464424,10.21489186,2656.4,2655.7,0.0387289]
[1727225464425,3.85485,2656.0,2655.7,0.0387289]
[1727225464816,0.78776137,2655.8,2655.7,0.0387289]
[1727225464944,1.68388977,2655.8,2655.7,0.0387289]
[1727225465265,0.8961284,2655.8,2655.7,0.0387289]
[1727225465759,1.77456659,2655.8,2655.7,0.0387289]
[1727225466269,2.95620864,2655.8,2655.7,0.0387289]
[1727225468163,7.27154864,2655.8,2655.7,0.0387289]
[1727225468463,9.25860258,2655.8,2655.7,0.0387289]
[1727225468692,7.37723251,2655.8,2655.7,0.0387289]
[1727225471262,8.87373035,2655.8,2655.7,0.0387289]
[1727225471656,11.23901444,2655.8,2655.7,0.0387289]
[1727225473384,8.87373035,2655.8,2655.7,0.0387289]
[1727225473906,11.87373035,2655.8,2655.7,0.0387289]
[1727225474102,11.87373035,2655.8,2654.8,0.0387289]
[1727225474103,1.27617875,2655.0,2654.8,0.0387289]
[1727225474305,9.1658885,2654.9,2654.8,0.0387289]
[1727225474455,9.26933691,2654.9,2654.8,0.0387289]
[1727225474653,11.24005953,2654.9,2654.8,0.0387289]
[1727225474851,9.26933691,2654.9,2654.8,0.0387289]
[1727225475082,10.43292449,2654.9,2654.8,0.0387289]
[1727225475279,12.40352949,2654.9,2654.8,0.0387289]
[1727225475869,10.43292449,2654.9,2654.8,0.0387289]
[1727225476303,12.00766578,2654.9,2654.8,0.0387289]
[1727225476530,12.40352949,2654.9,2654.8,0.0387289]
[1727225476693,15.40352949,2654.9,2654.8,0.11510158]
[1727225476891,15.40352949,2654.9,2654.8,0.0387289]
[1727225477116,13.43292449,2654.9,2654.8,0.0387289]
[1727225477435,13.42554857,2654.9,2654.8,0.0387289]
[1727225477790,8.14281459,2654.9,2654.8,0.0387289]
[1727225477985,2.6202029,2654.9,2654.8,0.0387289]